[Event "Teplice Open 2019"]
[Site "Teplice"]
[Date "2019.06.20"]
[Round "6.22"]
[White "Worek, Joanna"]
[Black "Erenberg, Ariel"]
[Result "*"]
[ECO "C50"]
[WhiteElo "2311"]
[BlackElo "2434"]
[Annotator "NA RC"]
[PlyCount "74"]
[EventDate "2019.06.15"]
[EventType "swiss"]
[EventCountry "CZE"]
[SourceTitle "playchess.com"]
[Source "ChessBase"]
[SourceQuality "1"]
[TimeControl "40/5400+30:1800+30"]

1. e4 {[%emt 0:03:14]} e5 {[%emt 0:00:00]} 2. Nf3 {[%emt 0:00:05]} Nc6 {[%emt 0:00:00]} 3. Bc4 {[%emt 0:00:04]} Bc5 {[%emt 0:00:07]} 4. O-O {[%emt 0:00:37]} Nf6 {[%emt 0:00:58]} 5. d3 {[%emt 0:00:05]} d6 {[%emt 0:02:58]} 6. a4 {[%emt 0:00:07]} a5 {[%emt 0:02:32]} 7. c3 {[%emt 0:01:23]} h6 {[%emt 0:03:59]} 8. Re1 {[%emt 0:03:55]} O-O {[%emt 0:01:41]} 9. Nbd2 {[%emt 0:04:13]} Be6 {[%emt 0:04:06]} 10. Bxe6 {[%emt 0:04:24]} fxe6 {[%emt 0:00:01]} 11. Nf1 {[%emt 0:00:09]} Qe8 {[%emt 0:10:01]} 12. Be3 {[%emt 0:02:48]} Bxe3 {[%emt 0:01:34]} 13. Rxe3 {[%emt 0:02:05]} Qf7 {[%emt 0:04:33]} 14. d4 {[%emt 0:08:05]} exd4 {[%emt 0:04:43]} 15. cxd4 {[%emt 0:00:11]} Rad8 {[%emt 0:12:02]} 16. Qe2 {[%emt 0:12:56]} Nb4 17. h3 {[%emt 0:12:06]} Nh5 {[%emt 0:12:45]} 18. Rc1 {[%emt 0:01:51]} Nf4 {[%emt 0:06:37]} 19. Qd2 {[%emt 0:05:02]} Qg6 {[%emt 0:01:39]} 20. Ng3 {[%emt 0:12:10]} Rd7 21. Ne1 {[%emt 0:14:33]} Rdf7 {[%emt 0:00:00]} 22. Nh1 {[%emt 0:02:14]} h5 {[%emt 0:05:24]} 23. Kh2 {[%emt 0:03:34]} h4 {[%emt 0:02:16]} 24. f3 {[%emt 0:00:00]} Qg5 25. Rcc3 {[%emt 0:02:55]} Nc6 {[%emt 0:05:58]} 26. Rb3 {[%emt 0:00:00]} Nb4 27. Rbc3 {[%emt 0:00:00]} d5 {[%emt 0:04:53]} 28. Nc2 {[%emt 0:00:00]} Nxc2 {[%emt 0:00:07]} 29. Qxc2 {[%emt 0:02:13]} e5 30. Re1 exd4 {[%emt 0:00:38]} 31. Rc5 {[%emt 0:00:52]} b6 {[%emt 0:01:17]} 32. Rb5 {[%emt 0:00:28]} Qe5 {[%emt 0:03:31]} 33. Kg1 {[%emt 0:00:10]} c6 {[%emt 0:01:45]} 34. Rxb6 {[%emt 0:01:45]} d3 {[%emt 0:00:11]} 35. Qf2 {[%emt 0:00:42]} Ne2+ {[%emt 0:02:06]} 36. Rxe2 {[%emt 0:00:52]} dxe2 {[%emt 0:00:00]} 37. Qxe2 {[%emt 0:00:42]} dxe4 {[%emt 0:00:07]} *

[Event "Teplice Open 2019"]
[Site "Teplice"]
[Date "2019.06.20"]
[Round "6.23"]
[White "Kett, Tim"]
[Black "Cawdery, Daniel"]
[Result "1/2-1/2"]
[ECO "D00"]
[WhiteElo "2197"]
[BlackElo "2428"]
[Annotator "NA"]
[PlyCount "60"]
[EventDate "2019.06.15"]
[EventType "swiss"]
[EventCountry "CZE"]
[SourceTitle "playchess.com"]
[Source "ChessBase"]
[SourceQuality "1"]
[TimeControl "40/5400+30:1800+30"]

1. d4 {[%emt 0:00:00]} Nf6 {[%emt 0:00:00]} 2. Nc3 {[%emt 0:00:00]} d5 {[%emt 0:00:36]} 3. Bf4 {[%emt 0:00:00]} g6 {[%emt 0:01:04]} 4. e3 {[%emt 0:00:13]} Bg7 {[%emt 0:00:19]} 5. h4 {[%emt 0:00:34]} c5 {[%emt 0:02:38]} 6. Nb5 {[%emt 0:00:23]} Na6 {[%emt 0:02:08]} 7. c3 {[%emt 0:00:42]} Qb6 {[%emt 0:14:35]} 8. a4 {[%emt 0:08:07]} c4 {[%emt 0:03:22]} 9. Nf3 {[%emt 0:03:50]} O-O {[%emt 0:14:14]} 10. b3 {[%emt 0:05:53]} cxb3 {[%emt 0:06:42]} 11. Qxb3 {[%emt 0:00:12]} Qa5 {[%emt 0:01:36]} 12. h5 {[%emt 0:07:52]} Bd7 {[%emt 0:05:12]} 13. hxg6 {[%emt 0:00:26]} hxg6 {[%emt 0:02:44]} 14. Ne5 {[%emt 0:11:17]} Bxb5 {[%emt 0:02:59]} 15. Bxb5 {[%emt 0:00:12]} Rac8 {[%emt 0:01:49]} 16. Rc1 {[%emt 0:03:11]} Nc7 {[%emt 0:02:25]} 17. O-O {[%emt 0:02:19]} Ne6 {[%emt 0:00:29]} 18. Bh2 {[%emt 0:03:30]} Nc7 {[%emt 0:01:05]} 19. Bd3 {[%emt 0:00:23]} Ne6 {[%emt 0:01:04]} 20. Qb4 {[%emt 0:01:34]} Qxb4 {[%emt 0:00:50]} 21. cxb4 {[%emt 0:01:04]} Rfd8 {[%emt 0:00:40]} 22. Rfd1 {[%emt 0:00:23]} Ne8 {[%emt 0:01:05]} 23. Kf1 {[%emt 0:00:38]} Nd6 {[%emt 0:00:40]} 24. Ke2 {[%emt 0:00:32]} Rxc1 {[%emt 0:00:24]} 25. Rxc1 {[%emt 0:00:07]} Rc8 {[%emt 0:00:08]} 26. Rxc8+ {[%emt 0:00:16]} Nxc8 {[%emt 0:00:01]} 27. Nd7 {[%emt 0:01:02]} Nd8 {[%emt 0:00:43]} 28. Kd2 {[%emt 0:01:09]} e6 {[%emt 0:02:31]} 29. Be5 {[%emt 0:00:47]} Bxe5 {[%emt 0:00:58]} 30. Nxe5 {[%emt 0:00:06]} Nd6 {[%emt 0:00:09]} 1/2-1/2

[Event "Teplice Open 2019"]
[Site "Teplice"]
[Date "2019.06.20"]
[Round "6.24"]
[White "Mazur, Stefan"]
[Black "Thorsbro, Peter"]
[Result "1-0"]
[ECO "C46"]
[WhiteElo "2426"]
[BlackElo "2142"]
[Annotator "NA"]
[PlyCount "53"]
[EventDate "2019.06.15"]
[EventType "swiss"]
[EventCountry "CZE"]
[SourceTitle "playchess.com"]
[Source "ChessBase"]
[SourceQuality "1"]
[TimeControl "40/5400+30:1800+30"]

1. e4 {[%emt 1:03:34]} e5 {[%emt 0:00:07]} 2. Nf3 {[%emt 0:01:15]} Nc6 {[%emt 0:00:03]} 3. Nc3 {[%emt 0:02:56]} Bc5 {[%emt 0:04:46]} 4. Nxe5 {[%emt 0:02:09]} Bxf2+ {[%emt 0:06:14]} 5. Kxf2 {[%emt 0:00:19]} Nxe5 {[%emt 0:00:03]} 6. d4 {[%emt 0:00:41]} Nc6 {[%emt 0:01:01]} 7. Be3 {[%emt 0:05:24]} d6 {[%emt 0:06:35]} 8. Be2 {[%emt 0:03:14]} Nge7 {[%emt 0:10:32]} 9. Rf1 {[%emt 0:02:20]} O-O {[%emt 0:01:39]} 10. Kg1 {[%emt 0:00:14]} f5 {[%emt 0:02:00]} 11. Bc4+ {[%emt 0:24:05]} Kh8 {[%emt 0:00:05]} 12. Bg5 {[%emt 0:01:17]} fxe4 {[%emt 0:14:31]} 13. Qh5 {[%emt 0:00:58]} Bf5 {[%emt 0:01:24]} 14. Nd5 {[%emt 0:06:04]} Bg6 {[%emt 0:11:34]} 15. Qh4 {[%emt 0:01:02]} Re8 {[%emt 0:00:53]} 16. Bb5 {[%emt 0:03:44]} Nxd5 {[%emt 0:03:25]} 17. Bxd8 {[%emt 0:00:14]} Raxd8 {[%emt 0:00:03]} 18. Rae1 {[%emt 0:00:51]} Nf6 {[%emt 0:00:55]} 19. Rxf6 {[%emt 0:08:24]} gxf6 {[%emt 0:00:03]} 20. d5 {[%emt 0:00:09]} a6 {[%emt 0:02:47]} 21. dxc6 {[%emt 0:00:13]} axb5 {[%emt 0:00:03]} 22. Qxf6+ {[%emt 0:00:10]} Kg8 {[%emt 0:00:02]} 23. cxb7 {[%emt 0:00:10]} Rb8 {[%emt 0:01:30]} 24. h4 {[%emt 0:00:56]} Rxb7 {[%emt 0:01:45]} 25. h5 {[%emt 0:00:09]} Bxh5 {[%emt 0:00:42]} 26. Qg5+ {[%emt 0:00:07]} Kh8 {[%emt 0:01:17]} 27. Qxh5 {[%emt 0:00:18]} 1-0

[Event "Teplice Open 2019"]
[Site "Teplice"]
[Date "2019.06.20"]
[Round "6.26"]
[White "Morgunov, Daniel"]
[Black "Vogel, Roven"]
[Result "1/2-1/2"]
[ECO "B11"]
[WhiteElo "2289"]
[BlackElo "2471"]
[Annotator "ChessBase"]
[PlyCount "82"]
[EventDate "2019.06.15"]
[EventType "swiss"]
[EventCountry "CZE"]
[SourceTitle "playchess.com"]
[Source "ChessBase"]
[SourceQuality "1"]
[TimeControl "40/5400+30:1800+30"]

1. e4 {[%emt 0:00:00]} c6 {[%emt 0:00:00]} 2. Nf3 {[%emt 0:00:00]} d5 {[%emt 0:00:00]} 3. Nc3 {[%emt 0:00:00]} Nf6 {[%emt 0:00:00]} 4. e5 {[%emt 0:00:00]} Ne4 {[%emt 0:00:08]} 5. Ne2 {[%emt 0:00:00]} Qb6 {[%emt 0:00:09]} 6. d4 {[%emt 0:00:03]} e6 {[%emt 0:00:25]} 7. Ng3 {[%emt 0:00:08]} c5 {[%emt 0:00:20]} 8. Bd3 {[%emt 0:00:05]} Nxg3 {[%emt 0:00:23]} 9. hxg3 {[%emt 0:00:04]} cxd4 {[%emt 0:01:43]} 10. a3 {[%emt 0:00:10]} Nc6 {[%emt 0:01:25]} 11. b4 {[%emt 0:00:13]} Bd7 {[%emt 0:01:43]} 12. g4 {[%emt 0:00:58]} O-O-O {[%emt 0:03:35]} 13. Bf4 {[%emt 0:02:08]} h6 {[%emt 0:10:20]} 14. g5 {[%emt 0:11:10]} hxg5 {[%emt 0:02:28]} 15. Rxh8 {[%emt 0:00:32]} gxf4 {[%emt 0:08:00]} 16. Kf1 {[%emt 0:03:31]} f6 {[%emt 0:07:50]} 17. Qe2 {[%emt 0:04:43]} Qc7 {[%emt 0:02:27]} 18. Rh5 {[%emt 0:17:25]} Be8 {[%emt 0:27:18]} 19. Rh8 {[%emt 0:00:46]} Bd7 {[%emt 0:00:09]} 20. Bb5 {[%emt 0:10:56]} Nxe5 {[%emt 0:00:50]} 21. Nxd4 {[%emt 0:02:44]} Kb8 {[%emt 0:01:26]} 22. Bxd7 {[%emt 0:05:02]} Qxd7 {[%emt 0:00:02]} 23. Rd1 {[%emt 0:01:00]} Rc8 {[%emt 0:07:54]} 24. Qb5 {[%emt 0:07:56]} Qf7 {[%emt 0:01:00]} 25. a4 {[%emt 0:06:45]} Nc4 {[%emt 0:01:51]} 26. Nxe6 {[%emt 0:08:00]} Qxe6 {[%emt 0:00:11]} 27. Qxd5 {[%emt 0:00:33]} Qxd5 {[%emt 0:01:32]} 28. Rxd5 {[%emt 0:00:02]} Ne5 {[%emt 0:01:06]} 29. Rg8 {[%emt 0:03:40]} Bxb4 {[%emt 0:06:32]} 30. Rxg7 {[%emt 0:00:48]} Rxc2 {[%emt 0:01:27]} 31. Rd8+ {[%emt 0:00:08]} Rc8 {[%emt 0:00:05]} 32. Rgg8 {[%emt 0:00:06]} Rxd8 {[%emt 0:00:18]} 33. Rxd8+ {[%emt 0:00:05]} Kc7 {[%emt 0:00:06]} 34. Rd4 {[%emt 0:00:08]} Be7 {[%emt 0:08:50]} 35. Rxf4 {[%emt 0:00:09]} a6 {[%emt 0:02:14]} 36. Ke2 {[%emt 0:06:32]} b5 {[%emt 0:00:17]} 37. axb5 {[%emt 0:00:06]} axb5 {[%emt 0:00:01]} 38. Rf5 {[%emt 0:03:04]} Kb6 {[%emt 0:01:28]} 39. f4 {[%emt 0:00:42]} Nf7 {[%emt 0:02:49]} 40. Rh5 {[%emt 0:02:43]} Bc5 {[%emt 0:01:02]} 41. g4 {[%emt 0:32:47]} Kc6 {[%emt 0:06:00]} 1/2-1/2

[Event "Teplice Open 2019"]
[Site "Teplice"]
[Date "2019.06.20"]
[Round "6.27"]
[White "Real, Thibault"]
[Black "Abdumalik, Zhansaya"]
[Result "0-1"]
[ECO "A31"]
[WhiteElo "2266"]
[BlackElo "2464"]
[Annotator "RC"]
[PlyCount "102"]
[EventDate "2019.06.15"]
[EventType "swiss"]
[EventCountry "CZE"]
[SourceTitle "playchess.com"]
[Source "ChessBase"]
[SourceQuality "1"]
[TimeControl "40/5400+30:1800+30"]

1. Nf3 {[%emt 0:01:14]} Nf6 {[%emt 0:00:00]} 2. c4 {[%emt 0:00:08]} c5 {[%emt 0:00:35]} 3. Nc3 {[%emt 0:00:09]} b6 {[%emt 0:01:11]} 4. e4 {[%emt 0:04:55]} d6 {[%emt 0:01:08]} 5. d4 {[%emt 0:01:26]} cxd4 {[%emt 0:00:33]} 6. Nxd4 {[%emt 0:00:12]} e6 {[%emt 0:02:16]} 7. Be2 {[%emt 0:01:33]} Bb7 {[%emt 0:01:16]} 8. f3 {[%emt 0:00:23]} a6 {[%emt 0:01:17]} 9. O-O {[%emt 0:02:06]} Nbd7 {[%emt 0:03:07]} 10. Be3 {[%emt 0:00:41]} Qc7 {[%emt 0:00:58]} 11. Qd2 {[%emt 0:04:03]} Rc8 {[%emt 0:03:46]} 12. Rac1 {[%emt 0:00:26]} Be7 {[%emt 0:00:30]} 13. Rfd1 {[%emt 0:07:34]} O-O {[%emt 0:00:15]} 14. Bf1 {[%emt 0:00:53]} h5 {[%emt 0:00:23]} 15. b3 {[%emt 0:09:01]} Rfe8 {[%emt 0:03:23]} 16. Bd3 {[%emt 0:02:43]} Qb8 {[%emt 0:03:09]} 17. Bb1 {[%emt 0:02:07]} h4 {[%emt 0:03:11]} 18. Bg5 {[%emt 0:12:59]} h3 {[%emt 0:06:44]} 19. gxh3 {[%emt 0:06:09]} Rc5 {[%emt 0:05:23]} 20. h4 {[%emt 0:14:29]} Bf8 {[%emt 0:03:07]} 21. Qg2 {[%emt 0:03:01]} Nh7 {[%emt 0:02:04]} 22. Be3 {[%emt 0:00:36]} Rh5 {[%emt 0:03:38]} 23. Bf2 {[%emt 0:00:58]} Be7 {[%emt 0:01:38]} 24. Kh1 {[%emt 0:04:41]} Bxh4 {[%emt 0:02:56]} 25. Bxh4 {[%emt 0:00:15]} Rxh4 {[%emt 0:00:08]} 26. Nde2 {[%emt 0:01:28]} Rh6 {[%emt 0:04:09]} 27. Rg1 {[%emt 0:10:16]} g6 {[%emt 0:01:44]} 28. Qf2 {[%emt 0:01:16]} Kg7 {[%emt 0:03:08]} 29. Rcd1 {[%emt 0:01:46]} Nhf6 {[%emt 0:01:15]} 30. Ng3 {[%emt 0:01:08]} Reh8 {[%emt 0:01:17]} 31. Rg2 {[%emt 0:00:12]} Ne5 {[%emt 0:00:47]} 32. Bd3 {[%emt 0:03:22]} Qc7 {[%emt 0:05:58]} 33. Be2 {[%emt 0:01:12]} b5 {[%emt 0:00:43]} 34. Qd4 {[%emt 0:00:43]} bxc4 {[%emt 0:02:41]} 35. bxc4 {[%emt 0:00:08]} Qa5 {[%emt 0:04:01]} 36. Nd5 {[%emt 0:01:38]} exd5 {[%emt 0:14:16]} 37. Nf5+ {[%emt 0:00:01]} Kg8 {[%emt 0:04:35]} 38. Nxh6+ {[%emt 0:00:21]} Rxh6 {[%emt 0:00:07]} 39. f4 {[%emt 0:01:58]} Ned7 {[%emt 0:01:58]} 40. e5 {[%emt 0:00:53]} dxe5 {[%emt 0:02:34]} 41. fxe5 {[%emt 0:02:32]} dxc4 {[%emt 0:00:19]} 42. exf6 {[%emt 0:01:22]} Qg5 {[%emt 0:01:29]} 43. Qf2 {[%emt 0:02:24]} Ne5 {[%emt 0:12:12]} 44. Rd6 {[%emt 0:19:11]} c3 {[%emt 0:03:40]} 45. Bxa6 {[%emt 0:06:25]} Ng4 {[%emt 0:01:53]} 46. Bxb7 {[%emt 0:00:22]} Nxf2+ {[%emt 0:00:13]} 47. Rxf2 {[%emt 0:00:06]} Qc1+ {[%emt 0:01:04]} 48. Kg2 {[%emt 0:00:05]} Rh5 {[%emt 0:00:09]} 49. Rd8+ {[%emt 0:01:49]} Kh7 {[%emt 0:00:02]} 50. Be4 {[%emt 0:00:14]} Qe3 {[%emt 0:02:10]} 51. Bc2 {[%emt 0:00:30]} Rxh2+ {[%emt 0:00:07]} 0-1

[Event "Teplice Open 2019"]
[Site "Teplice"]
[Date "2019.06.20"]
[Round "6.29"]
[White "Kucera, Petr"]
[Black "Ahlander, Bjorn"]
[Result "1/2-1/2"]
[ECO "D38"]
[WhiteElo "2248"]
[BlackElo "2421"]
[Annotator "NA"]
[PlyCount "109"]
[EventDate "2019.06.15"]
[EventType "swiss"]
[EventCountry "CZE"]
[SourceTitle "playchess.com"]
[Source "ChessBase"]
[SourceQuality "1"]
[TimeControl "40/5400+30:1800+30"]

1. d4 {[%emt 0:00:00]} Nf6 {[%emt 0:00:00]} 2. c4 {[%emt 0:00:00]} e6 {[%emt 0:00:00]} 3. Nf3 {[%emt 0:00:02]} d5 {[%emt 0:00:00]} 4. Nc3 {[%emt 0:00:32]} Bb4 {[%emt 0:00:39]} 5. cxd5 {[%emt 0:03:17]} exd5 {[%emt 0:00:03]} 6. Bg5 {[%emt 0:00:26]} h6 {[%emt 0:00:07]} 7. Bxf6 {[%emt 0:00:17]} Qxf6 {[%emt 0:00:03]} 8. Qb3 {[%emt 0:01:33]} Qd6 {[%emt 0:00:10]} 9. a3 {[%emt 0:05:42]} Bxc3+ {[%emt 0:03:26]} 10. Qxc3 {[%emt 0:00:38]} Bf5 {[%emt 0:02:40]} 11. e3 {[%emt 0:00:52]} Nd7 {[%emt 0:00:48]} 12. Be2 {[%emt 0:02:47]} O-O {[%emt 0:00:58]} 13. O-O {[%emt 0:01:36]} Nf6 {[%emt 0:03:58]} 14. Rfc1 {[%emt 0:02:11]} c6 {[%emt 0:00:03]} 15. b4 {[%emt 0:00:56]} Ne4 {[%emt 0:01:52]} 16. Qe1 {[%emt 0:00:15]} Rac8 {[%emt 0:12:45]} 17. a4 {[%emt 0:10:54]} Rc7 {[%emt 0:05:13]} 18. Ne5 {[%emt 0:00:29]} Rfc8 {[%emt 0:17:16]} 19. Nd3 {[%emt 0:03:01]} Qg6 {[%emt 0:00:00]} 20. f3 {[%emt 0:22:17]} Nd6 {[%emt 0:00:00]} 21. Nf4 {[%emt 0:01:23]} Qf6 {[%emt 0:00:00]} 22. g4 {[%emt 0:05:00]} Bh7 {[%emt 0:00:00]} 23. Qg3 {[%emt 0:04:12]} g5 {[%emt 0:06:36]} 24. Nh5 {[%emt 0:00:51]} Qe7 {[%emt 0:00:37]} 25. Qe5 {[%emt 0:02:23]} Ne8 {[%emt 0:00:08]} 26. Qxe7 {[%emt 0:01:55]} Rxe7 {[%emt 0:00:03]} 27. Kf2 {[%emt 0:01:54]} Bg6 {[%emt 0:00:03]} 28. Ng3 {[%emt 0:01:01]} Nd6 {[%emt 0:00:07]} 29. Ra3 {[%emt 0:01:51]} Kf8 {[%emt 0:05:37]} 30. Rac3 {[%emt 0:09:42]} Ke8 {[%emt 0:00:17]} 31. b5 {[%emt 0:01:25]} Rec7 {[%emt 0:01:05]} 32. Ke1 {[%emt 0:00:49]} Kd7 {[%emt 0:01:33]} 33. Kd2 {[%emt 0:01:41]} f6 {[%emt 0:02:57]} 34. Bf1 {[%emt 0:12:09]} cxb5 {[%emt 0:04:12]} 35. axb5 {[%emt 0:01:11]} Kd8 {[%emt 0:00:50]} 36. Rxc7 {[%emt 0:01:26]} Rxc7 {[%emt 0:00:03]} 37. Rc5 {[%emt 0:00:09]} b6 {[%emt 0:02:15]} 38. Rxc7 {[%emt 0:00:52]} Kxc7 {[%emt 0:00:02]} 39. Kc3 {[%emt 0:00:01]} Kd7 {[%emt 0:02:34]} 40. Be2 {[%emt 0:00:58]} Ke6 {[%emt 0:00:41]} 41. Bf1 {[%emt 0:01:36]} Ke7 {[%emt 0:01:11]} 42. Be2 {[%emt 0:00:34]} Kf7 {[%emt 0:00:03]} 43. Bf1 {[%emt 0:00:37]} Kf8 {[%emt 0:01:11]} 44. Be2 {[%emt 0:00:18]} Kg7 {[%emt 0:00:06]} 45. Bf1 {[%emt 0:00:40]} Kf7 {[%emt 0:19:25]} 46. Be2 {[%emt 0:00:23]} Ke6 {[%emt 0:01:59]} 47. Bf1 {[%emt 0:00:37]} Bh7 {[%emt 0:11:43]} 48. Be2 {[%emt 0:01:09]} Bb1 {[%emt 0:00:38]} 49. Kb2 {[%emt 0:00:30]} Bh7 {[%emt 0:00:04]} 50. Kc3 {[%emt 0:00:05]} Kd7 {[%emt 0:01:54]} 51. Bf1 {[%emt 0:00:51]} Bg6 {[%emt 0:00:40]} 52. Be2 {[%emt 0:00:23]} Ke6 {[%emt 0:04:53]} 53. Bf1 {[%emt 0:00:44]} Bb1 {[%emt 0:00:07]} 54. Kb2 {[%emt 0:00:24]} Bg6 {[%emt 0:00:07]} 55. Kc3 {[%emt 0:00:40] Ke5} 1/2-1/2

[Event "Teplice Open 2019"]
[Site "Teplice"]
[Date "2019.06.20"]
[Round "6.30"]
[White "Siddharth, Jagadeesh"]
[Black "Pacan-Milej, Kosma"]
[Result "1-0"]
[ECO "A15"]
[WhiteElo "2416"]
[BlackElo "2247"]
[Annotator "NA"]
[PlyCount "100"]
[EventDate "2019.06.15"]
[EventType "swiss"]
[EventCountry "CZE"]
[SourceTitle "playchess.com"]
[Source "ChessBase"]
[SourceQuality "1"]
[TimeControl "40/5400+30:1800+30"]

1. Nf3 {[%emt 1:03:31]} Nf6 {[%emt 0:00:09]} 2. c4 {[%emt 0:00:04]} b6 {[%emt 0:00:07]} 3. g3 {[%emt 0:00:04]} Bb7 {[%emt 0:00:06]} 4. Bg2 {[%emt 0:00:05]} g6 {[%emt 0:00:10]} 5. O-O {[%emt 0:00:06]} Bg7 {[%emt 0:00:03]} 6. Nc3 {[%emt 0:00:06]} O-O {[%emt 0:00:14]} 7. Re1 {[%emt 0:00:05]} Ne4 {[%emt 0:17:52]} 8. Nxe4 {[%emt 0:00:07]} Bxe4 {[%emt 0:00:03]} 9. d3 {[%emt 0:00:06]} Bb7 {[%emt 0:00:06]} 10. e4 {[%emt 0:00:04]} c5 {[%emt 0:07:57]} 11. d4 {[%emt 0:00:07]} cxd4 {[%emt 0:00:09]} 12. Nxd4 {[%emt 0:00:05]} d6 {[%emt 0:00:46]} 13. Be3 {[%emt 0:00:09]} Nd7 {[%emt 0:00:30]} 14. Qd2 {[%emt 0:08:36]} Ne5 {[%emt 0:05:10]} 15. Qe2 {[%emt 0:05:20]} Rc8 {[%emt 0:02:06]} 16. b3 {[%emt 0:06:52]} Qc7 {[%emt 0:01:33]} 17. Nb5 {[%emt 0:12:20]} Qb8 {[%emt 0:00:05]} 18. Rac1 {[%emt 0:00:14]} Rfd8 {[%emt 0:08:25]} 19. Nc3 {[%emt 0:02:37]} e6 {[%emt 0:03:45]} 20. Red1 {[%emt 0:01:17]} h6 {[%emt 0:24:45]} 21. Rd2 {[%emt 0:05:22]} Nc6 {[%emt 0:01:56]} 22. Qd1 {[%emt 0:02:00]} Rd7 {[%emt 0:02:30]} 23. f4 {[%emt 0:06:18]} Ne7 {[%emt 0:02:37]} 24. Rd3 {[%emt 0:22:34]} Rcd8 {[%emt 0:01:51]} 25. Qd2 {[%emt 0:02:37]} Qa8 {[%emt 0:02:34]} 26. Bd4 {[%emt 0:08:09]} Bc6 {[%emt 0:02:52]} 27. Bxg7 {[%emt 0:03:00]} Kxg7 {[%emt 0:00:06]} 28. Rd1 {[%emt 0:00:26]} a6 {[%emt 0:01:41]} 29. e5 {[%emt 0:06:16]} Qc8 {[%emt 0:09:43]} 30. Bxc6 {[%emt 0:04:10]} Qxc6 {[%emt 0:00:03]} 31. Rxd6 {[%emt 0:00:12]} Rxd6 {[%emt 0:01:42]} 32. exd6 {[%emt 0:00:01]} Qc5+ {[%emt 0:01:31]} 33. Qf2 {[%emt 0:01:10]} Rxd6 {[%emt 0:00:55]} 34. Qxc5 Rxd1+ {[%emt 0:00:05]} 35. Nxd1 {[%emt 0:00:04]} bxc5 {[%emt 0:00:01]} 36. Nc3 Nc6 {[%emt 0:00:49]} 37. Na4 {[%emt 0:00:22]} Nb4 {[%emt 0:01:20]} 38. Nxc5 {[%emt 0:00:06]} a5 {[%emt 0:00:45]} 39. a4 {[%emt 0:00:51]} Kf6 {[%emt 0:00:29]} 40. Kf2 {[%emt 0:03:25]} Ke7 {[%emt 0:00:03]} 41. Ke3 {[%emt 0:01:48]} f5 {[%emt 0:00:55]} 42. Kd2 {[%emt 0:02:54]} Kd6 {[%emt 0:03:41]} 43. Nd3 {[%emt 0:01:48]} Nc6 {[%emt 0:01:17]} 44. Kc3 {[%emt 0:01:09]} g5 {[%emt 0:00:05]} 45. c5+ {[%emt 0:01:13]} Kd5 {[%emt 0:01:02]} 46. b4 {[%emt 0:00:48]} axb4+ {[%emt 0:03:02]} 47. Nxb4+ {[%emt 0:00:46]} Nxb4 {[%emt 0:00:03]} 48. Kxb4 {[%emt 0:00:08]} e5 {[%emt 0:00:03]} 49. c6 {[%emt 0:00:37]} Kxc6 {[%emt 0:00:05]} 50. fxe5 {[%emt 0:00:03]} Kd5 {[%emt 0:00:26]} 1-0

[Event "Teplice Open 2019"]
[Site "Teplice"]
[Date "2019.06.20"]
[Round "6.31"]
[White "Freisler, Pavel"]
[Black "Halvax, Georg"]
[Result "1/2-1/2"]
[ECO "E05"]
[WhiteElo "2246"]
[BlackElo "2408"]
[Annotator "NA"]
[PlyCount "42"]
[EventDate "2019.06.15"]
[EventType "swiss"]
[EventCountry "CZE"]
[SourceTitle "playchess.com"]
[Source "ChessBase"]
[SourceQuality "1"]
[TimeControl "40/5400+30:1800+30"]

1. Nf3 {[%emt 0:00:00]} d5 {[%emt 0:00:07]} 2. d4 {[%emt 0:00:23]} Nf6 {[%emt 0:00:07]} 3. c4 {[%emt 0:00:30]} e6 {[%emt 0:00:30]} 4. g3 {[%emt 0:01:48]} Be7 {[%emt 0:02:28]} 5. Bg2 {[%emt 0:00:28]} O-O {[%emt 0:00:28]} 6. O-O {[%emt 0:00:57]} dxc4 {[%emt 0:00:52]} 7. Qc2 {[%emt 0:00:19]} b6 {[%emt 0:01:24]} 8. Bg5 {[%emt 0:02:50]} Nd5 {[%emt 0:00:45]} 9. Bxe7 {[%emt 0:00:07]} Qxe7 {[%emt 0:00:07]} 10. Qxc4 {[%emt 0:00:07]} Ba6 {[%emt 0:00:34]} 11. Qc2 {[%emt 0:00:09]} Nd7 {[%emt 0:01:34]} 12. Re1 {[%emt 0:08:52]} c5 {[%emt 0:01:31]} 13. Nc3 {[%emt 0:02:25]} Nxc3 {[%emt 0:00:28]} 14. Qxc3 {[%emt 0:01:05]} Rac8 {[%emt 0:00:32]} 15. Qa3 {[%emt 0:02:41]} Nb8 {[%emt 0:21:27]} 16. Rac1 {[%emt 0:01:22]} Rfd8 {[%emt 0:10:38]} 17. e3 {[%emt 0:17:08]} Kf8 {[%emt 0:05:47]} 18. dxc5 {[%emt 0:02:45]} Rxc5 {[%emt 0:01:01]} 19. Rxc5 {[%emt 0:01:56]} Qxc5 {[%emt 0:00:22]} 20. b4 {[%emt 0:05:16]} Qe7 {[%emt 0:02:20]} 21. Nd4 {[%emt 0:01:43]} Rc8 {[%emt 0:04:50]} 1/2-1/2

[Event "Teplice Open 2019"]
[Site "Teplice"]
[Date "2019.06.20"]
[Round "6.32"]
[White "Di Nicolantonio, Lucas"]
[Black "Horak, Martin"]
[Result "1/2-1/2"]
[ECO "A03"]
[WhiteElo "2379"]
[BlackElo "2244"]
[Annotator "NA"]
[PlyCount "28"]
[EventDate "2019.06.15"]
[EventType "swiss"]
[EventCountry "CZE"]
[SourceTitle "playchess.com"]
[Source "ChessBase"]
[SourceQuality "1"]
[TimeControl "40/5400+30:1800+30"]

1. f4 {[%emt 0:00:00]} d5 {[%emt 0:01:23]} 2. Nf3 {[%emt 0:00:00]} g6 {[%emt 0:01:20]} 3. g3 {[%emt 0:00:29]} Bg7 {[%emt 0:00:25]} 4. Bg2 {[%emt 0:00:38]} c5 5. O-O {[%emt 0:02:52]} Nc6 {[%emt 0:01:30]} 6. d3 {[%emt 0:00:00]} Nf6 {[%emt 0:04:10]} 7. c3 {[%emt 0:00:21]} O-O {[%emt 0:00:52]} 8. Na3 {[%emt 0:00:17]} Re8 {[%emt 0:10:47]} 9. Nh4 {[%emt 0:02:31]} e5 {[%emt 0:04:07]} 10. f5 {[%emt 0:00:58]} Ne7 {[%emt 0:14:27]} 11. e4 {[%emt 0:14:49]} dxe4 {[%emt 0:04:06]} 12. dxe4 {[%emt 0:01:19]} Qxd1 {[%emt 0:01:24]} 13. Rxd1 {[%emt 0:00:06]} gxf5 {[%emt 0:04:10]} 14. Nb5 {[%emt 0:10:46]} Rb8 {[%emt 0:06:00]} 1/2-1/2